{"text_format":"1","workbook":"xlsx","n_sheets":14,"sheets":["Accueil","Modalités d'utilisation","Description du PSPP","Objectifs et portée d'analyse","Sociale","Écologique","Économique","Culturelle","Éthique","Territoire","Gouvernance","Résultats","Modalités d'interprétation","Analyse des bonifications"],"not_rendered":{"charts":8,"images":8,"macros":0,"external_links":0,"defined_names":24,"comments":8,"pivot_tables":0},"unopened":[],"bounds":{"document_bytes":16777216,"sheet_cells":100000,"rows_first":2000,"rows_last":500,"rows_between":2000,"halvings":0,"cell_chars":16384,"cell_head_chars":4096},"cells_cut":0,"cells_raw":0,"read":"whole","date_system":"1900"}

{"sheet":"Accueil","index":0,"n_rows":0,"n_cols":0,"rows_kept":0,"cut":false,"hidden":false,"merged":[]}

{"sheet":"Modalités d'utilisation","index":1,"n_rows":64,"n_cols":25,"rows_kept":64,"cut":false,"hidden":false,"merged":[]}
[]
[null,null,null,null,null,null,null,null,null,null,null,null,null,null,null,null,null,null,null,null,"Évaluation","Prise en compte de l'objectif","Actions liées à l'objectif","Impact du PSPP sur l'objectif","Exemplarité du PSPP"]
[null,null,null,null,null,null,null,null,null,null,null,null,null,null,null,null,null,null,null,null,0,"Non pris en compte","Aucune action spécifique ou action adverse","Impacts négatifs importants ","Adopte les moins bonnes pratiques"]
[null,null,null,null,null,null,null,null,null,null,null,null,null,null,null,null,null,null,null,null,1,"Non pris en compte","Aucune action spécifique ou action adverse","Impacts négatifs de moyenne importance","Adopte les moins bonnes pratiques"]
[null,null,null,null,null,null,null,null,null,null,null,null,null,null,null,null,null,null,null,null,2,"Non pris en compte","Aucune action spécifique ou action adverse","Impacts négatifs faibles","Performe moins que les PSPP similaires"]
[null,null,null,null,null,null,null,null,null,null,null,null,null,null,null,null,null,null,null,null,3,"Non pris en compte","Aucune action spécifique","Sans impact","Performe moins que les PSPP similaires"]
[null,null,null,null,null,null,null,null,null,null,null,null,null,null,null,null,null,null,null,null,4,"Pris en compte indirectement","Peu d'actions, indirectes ou de faible portée","Maintien de la situation actuelle","Ne se démarque pas des PSPP similaires"]
[null,null,null,null,null,null,null,null,null,null,null,null,null,null,null,null,null,null,null,null,5,"Faiblement pris en compte","Quelques actions spécifiques de faible portée","Impacts positifs faibles ou indirects","Ne se démarque pas des PSPP similaires"]
[null,null,null,null,null,null,null,null,null,null,null,null,null,null,null,null,null,null,null,null,6,"Modérément pris en compte","Quelques actions tangibles ","Impacts positifs","Respecte les bonnes pratiques"]
[null,null,null,null,null,null,null,null,null,null,null,null,null,null,null,null,null,null,null,null,7,"Pris en compte","Actions concrètes et  éléments innovants","Impacts positifs","Se démarque d'autres PSPP similaires"]
[null,null,null,null,null,null,null,null,null,null,null,null,null,null,null,null,null,null,null,null,8,"Bien pris en compte","Plusieurs actions concrètes et des innovations tangibles","Impacts positifs importants","Se démarque d'autres PSPP similaires"]
[null,null,null,null,null,null,null,null,null,null,null,null,null,null,null,null,null,null,null,null,9,"Fortement pris en compte","Plusieurs actions innovantes","Impacts positifs très importants","Adopte les meilleures pratiques"]
[null,null,null,null,null,null,null,null,null,null,null,null,null,null,null,null,null,null,null,null,10,"Complètement pris en compte","Nombreux éléments innovants et meilleure pratiques","Impacts positifs très forts","Fait figure d'exemplarité"]
[]
[]
[]
[]
[]
[]
[]
[]
[]
[]
[]
[]
[]
[]
[]
[]
[]
[]
[]
[]
[]
[]
[]
[]
[]
[]
[]
[]
[]
[]
[]
[]
[]
[]
[]
[]
[]
[]
[]
[null," ","Prise en compte \nde l'objectif","Actions liées à l'objectif","Impact du PSPP \nsur l'objectif","Exemplarité du PSPP"]
[null,0,"Non pris en compte","Acune action spécifique\nou action adverse","Impacts négatifs importants","Adopte les moins bonnes \npratiques"]
[null,1,"Non pris en compte","Acune action spécifique\nou action adverse","Impacts négatifs de moyenne\nimportance","Adopte les moins bonnes \npratiques"]
[null,2,"Non pris en compte","Acune action spécifique\nou action adverse","Impacts négatifs faibles","Performe moins que les PSPP\nsimilaires"]
[null,3,"Non pris en compte","Aucune action spécifique","Sans impact","Performe moins que les PSPP\nsimilaires"]
[null,4,"Pris en compte \nindirectement","Peu d'action, indirects\nou de faible portée","Maintien de la situation actuelle","Ne se démarque pas des PSPP\nsimilaires"]
[null,5,"Faiblement pris en compte","Quelques actions \nspécifiques de faible portée","Impacts positifs faibles\nou indirects","Ne se démarque pas des PSPP\nsimilaires"]
[null,6,"Modérément pris en compte","Quelques actions tangibles","Impacts positifs","Respecte les bonnes pratiques"]
[null,7,"Pris en compte","Actions concrètes \net éléments innovants","Impacts positifs","Se démarque d'autres PSPP\nsimilaires"]
[null,8,"Bien pris en compte","Plusieurs actions concrètes\net des innovations tangibles","Impacts positifs importants","Se démarque d'autres PSPP\nsimilaires"]
[null,9,"Fortement pris en compte","Plusieurs actions innovantes","Impacts positifs très importants","Adopte les meilleures pratiques"]
[null,10,"Complètement pris\n en compte","Nombreux éléments innovants \net meilleures pratiques","Impacts positifs très forts","Fait figure d'exemplarité"]

{"sheet":"Description du PSPP","index":2,"n_rows":13,"n_cols":3,"rows_kept":13,"cut":false,"hidden":false,"merged":[[1,1,1,2]]}
[]
[null,"Description du PSPP faisant l'objet de l'analyse"]
[]
[null,"Nom du PSPP:"]
[null,"Description du PSPP:"]
[null,"Promoteur:"]
[]
[null,"Pondération par:"]
[null,"Date:"]
[null,"Évaluation par:"]
[null,"Date:"]
[]
[null,null,"GADD simplifiée, 2017"]

{"sheet":"Objectifs et portée d'analyse","index":3,"n_rows":13,"n_cols":3,"rows_kept":13,"cut":false,"hidden":false,"merged":[[1,1,1,2]]}
[]
[null,"Portée de l'analyse"]
[]
[null,"Objectifs de l'analyse"]
[]
[null,"Portée de l'analyse"]
[null,"Portée géographique"]
[null,"Portée temporelle"]
[null,"Portée opérationnelle"]
[]
[null,"Sources d'information considérées"]
[]
[null,null,"GADD Simplifiée, 2017"]

{"sheet":"Sociale","index":4,"n_rows":16,"n_cols":12,"rows_kept":16,"cut":false,"hidden":false,"merged":[[15,1,15,3],[1,1,1,9]]}
[]
[null,"DIMENSION SOCIALE\nVise à répondre aux besoins sociaux et aux aspirations individuelles et collectives, aux besoins de santé et de bien-être, aux besoins de qualité de vie."]
[null,"\nThèmes","\nObjectifs",null,"\nPondération","\nJustification de la pondération","\nÉvaluation","Justification de l'évaluation par des actions planifiées ou déjà mises en œuvre","\nPistes de bonification","\nPriorité","Note 1","priorité"]
[null,"1.1","Lutte contre \nla pauvreté","Mettre en place des actions visant à éliminer la pauvreté",null,null,null,null,null,{"$f":"IF(L4<101,\" \",IF(L4<162,\"Enjeux long terme\",IF(L4<202,\"Non prioritaire\",IF(L4<223,\"Réagir\",IF(L4<263,\"Agir\",IF(L4<303,\"Pérenniser\",IF(L4<344,\"Réagir\",IF(L4<364,\"Agir\",IF(L4<404,\"Pérenniser\")))))))))","v":" "},{"$f":"$E4*G4/10","v":0},{"$f":"IF(G4=\"\",0,((E4*101)+G4*10))","v":0}]
[null,"1.2","Accès à l'eau potable","Assurer l'approvisionnement en eau potable",null,null,null,null,null," ",0,0]
[null,"1.3","Usages de l'eau","Assurer une quantité et une qualité adéquate de l’eau pour \nses différents usages",null,null,null,null,null," ",{"$f":"$E6*G6/10","v":0},{"$f":"IF(G6=\"\",0,((E6*101)+G6*10))","v":0}]
[null,"1.4","Alimentation","Assurer la sécurité alimentaire et l'accès à de la nourriture de qualité",null,null,null,null,null," ",0,0]
[null,"1.5","Accès à l'énergie","Assurer l'accès à des services énergétiques fiables à un coût abordable",null,null,null,null,null," ",0,0]
[null,"1.6","Santé globale","Maintenir et améliorer l'état de santé des populations",null,null,null,null,null," ",0,0]
[null,"1.7","Accès aux services \nde santé","Assurer l'accès aux services de santé",null,null,null,null,null," ",0,0]
[null,"1.8","Santé maternelle \net infantile","Répondre aux besoins spécifiques de santé maternelle et infantile",null,null,null,null,null," ",0,0]
[null,"1.9","Sécurité","Assurer la sécurité effective des individus et des collectivités.",null,null,null,null,null," ",0,0]
[null,"1.10","Éducation de base","Assurer l'accès à des systèmes qui permettent une éducation \nde base fonctionnelle pour tous",null,null,null,null,null," ",0,0]
[null,"1.11","Éducation supérieure","Favoriser l'accès de chacun à son niveau d'éducation désiré \net à une formation continue",null,null,null,null,null," ",0,0]
[null,"1.12","Genre","Viser l'équité et l'égalité des droits entre les genres",null,null,null,null,null," ",0,0]
[null,"Pondération moyenne : \ndimension sociale",null,null,{"$f":"IF(SUM(E4:E15)=0,0,(AVERAGE(E4:E15)))","v":0},"Performance pondérée : \nDimension sociale",{"$f":"IF($E16=\"\",0,(IF($E16<>0,SUM(K4:K15)/SUM(E4:E15),0)))","v":0}]

{"sheet":"Écologique","index":5,"n_rows":14,"n_cols":12,"rows_kept":14,"cut":false,"hidden":false,"merged":[[13,1,13,3],[1,1,1,9],[2,2,2,3]]}
[]
[null,"DIMENSION ÉCOLOGIQUE\nVise à répondre aux besoins de qualité du milieu naturel et de pérennité des ressources, ainsi qu’à la redéfinition des relations humain-nature."]
[null,"\nThèmes","\nObjectifs",null,"\nPondération","\nJustification de la pondération","\nÉvaluation","Justification de l'évaluation par des actions planifiées ou déjà mises en œuvre","\nPistes de bonification","\nPriorité ","Note 1","priorité"]
[null,"2.1","Connaissance \ndes écosystèmes","Développer des connaissances sur les écosystèmes \net les espèces qui en dépendent.",null,null,null,null,null,{"$f":"IF(L4<101,\" \",IF(L4<162,\"Enjeux long terme\",IF(L4<202,\"Non prioritaire\",IF(L4<223,\"Réagir\",IF(L4<263,\"Agir\",IF(L4<303,\"Pérenniser\",IF(L4<344,\"Réagir\",IF(L4<364,\"Agir\",IF(L4<404,\"Pérenniser\")))))))))","v":" "},{"$f":"$E4*G4/10","v":0},{"$f":"IF(G4=\"\",0,((E4*101)+G4*10))","v":0}]
[null,"2.2","Biodiversité","Favoriser la protection de la biodiversité.",null,null,null,null,null,{"$f":"IF(L5<101,\" \",IF(L5<162,\"Enjeux long terme\",IF(L5<202,\"Non prioritaire\",IF(L5<223,\"Réagir\",IF(L5<263,\"Agir\",IF(L5<303,\"Pérenniser\",IF(L5<344,\"Réagir\",IF(L5<364,\"Agir\",IF(L5<404,\"Pérenniser\")))))))))","v":" "},{"$f":"$E5*G5/10","v":0},{"$f":"IF(G5=\"\",0,((E5*101)+G5*10))","v":0}]
[null,"2.3","Écosystèmes continentaux","Préserver les écosystèmes continentaux.",null,null,null,null,null," ",0,0]
[null,"2.4","Écosystèmes marins","Préserver les écosystèmes marins et littoraux.",null,null,null,null,null," ",0,0]
[null,"2.5","Sols","Limiter la dégradation biologique, chimique et physique \ndes sols.",null,null,null,null,null," ",0,0]
[null,"2.6","Restauration","Fixer des objectifs de restauration des écosystèmes dégradés.",null,null,null,null,null," ",0,0]
[null,"2.7","Ressources","Planifier une utilisation judicieuse des ressources renouvelables et non renouvelables.",null,null,null,null,null," ",0,0]
[null,"2.8","Extrants","Planifier une utilisation judicieuse des ressources renouvelables et non renouvelables.",null,null,null,null,null," ",0,0]
[null,"2.9","Polluants globaux","Planifier une utilisation judicieuse des ressources renouvelables et non renouvelables.",null,null,null,null,null," ",0,0]
[null,"2.10","Changements climatiques","Planifier une utilisation judicieuse des ressources renouvelables et non renouvelables.",null,null,null,null,null," ",0,0]
[null,"Pondération moyenne : \ndimension ÉCOLOGIQUE",null,null,{"$f":"IF(SUM(E4:E13)=0,0,(AVERAGE(E4:E13)))","v":0},"Performance pondérée : \nDimension écologique",{"$f":"IF($E14=\"\",0,(IF($E14<>0,SUM(K4:K13)/SUM(E4:E13),0)))","v":0}]

{"sheet":"Économique","index":6,"n_rows":14,"n_cols":13,"rows_kept":14,"cut":false,"hidden":false,"merged":[[13,1,13,3],[1,1,1,10],[2,2,2,3]]}
[]
[null,"DIMENSION ÉCONOMIQUE\nVise à répondre aux besoins matériels des individus et des collectivités ainsi qu’à leur autonomisation financière."]
[null,"\nThèmes","\nObjectifs",null,"\nPondération","\nJustification de la pondération","\nÉvaluation","Justification de l'évaluation par des actions planifiées ou déjà mises en œuvre",null,"\nPistes de bonification","\nPriorité","Note 1","priorité"]
[null,"3.1","Production responsable","Produire des biens et services de qualité, en  adéquation \navec les besoins.",null,null,null,null,null,null,{"$f":"IF(M4<101,\" \",IF(M4<162,\"Enjeux long terme\",IF(M4<202,\"Non prioritaire\",IF(M4<223,\"Réagir\",IF(M4<263,\"Agir\",IF(M4<303,\"Pérenniser\",IF(M4<344,\"Réagir\",IF(M4<364,\"Agir\",IF(M4<404,\"Pérenniser\")))))))))","v":" "},{"$f":"$E4*G4/10","v":0},{"$f":"IF(G4=\"\",0,((E4*101)+G4*10))","v":0}]
[null,"3.2","Industrialisation durable","Promouvoir une industrialisation durable et responsable.",null,null,null,null,null,null," ",0,0]
[null,"3.3","Consommation responsable","Favoriser l’achat, la consommation et l'investissement responsables.",null,null,null,null,null,null," ",0,0]
[null,"3.4","Viabilité économique","S’assurer de la viabilité économique.",null,null,null,null,null,null," ",0,0]
[null,"3.5","Accès à l'emploi","Favoriser l'accès à une occupation.",null,null,null,null,null,null," ",0,0]
[null,"3.6","Conditions de travail","S'assurer d'une juste reconnaissance de la valeur du travail \ndes personnes.",null,null,null,null,null,null," ",0,0]
[null,"3.7","Richesses \net prospérité","Viser la prospérité et une croissance de la richesse. ",null,null,null,null,null,null," ",0,0]
[null,"3.8","Production \nde richesse","Assurer un accès équitable aux moyens de production \nde la richesse.",null,null,null,null,null,null," ",0,0]
[null,"3.9","Entrepreneuriat","Soutenir la capacité d’entreprendre.",null,null,null,null,null,null," ",0,0]
[null,"3.10","Modèles économiques","Soutenir les modèles économiques émergents, traditionnels, durables et novateurs.",null,null,null,null,null,null," ",0,0]
[null,"Pondération moyenne: \ndimension ÉCONOMIQUE",null,null,{"$f":"IF(SUM(E4:E13)=0,0,(AVERAGE(E4:E13)))","v":0},"Performance pondérée : \nDimension économique",{"$f":"IF($E14=\"\",0,(IF($E14<>0,SUM(L4:L13)/SUM(E4:E13),0)))","v":0}]

{"sheet":"Culturelle","index":7,"n_rows":11,"n_cols":12,"rows_kept":11,"cut":false,"hidden":false,"merged":[[10,1,10,3],[1,1,1,11],[2,2,2,3]]}
[]
[null,"DIMENSION CULTURELLE\nVise à répondre aux besoins d’affirmation, d'expression, de protection et de mise en valeur de la diversité des traits culturels."]
[null,"\nThèmes","\nObjectifs",null,"\nPondération","\nJustification de la pondération","\nÉvaluation","Justification de l'évaluation par des actions planifiées ou déjà mises en œuvre","\nPistes de bonification","\nPriorité","\nNote 1","\npriorité"]
[null,"4.1","Patrimoine culturel","Assurer la conservation, la restauration et la mise en valeur\n du patrimoine culturel.",null,null,null,null,null,{"$f":"IF(L4<101,\" \",IF(L4<162,\"Enjeux long terme\",IF(L4<202,\"Non prioritaire\",IF(L4<223,\"Réagir\",IF(L4<263,\"Agir\",IF(L4<303,\"Pérenniser\",IF(L4<344,\"Réagir\",IF(L4<364,\"Agir\",IF(L4<404,\"Pérenniser\")))))))))","v":" "},{"$f":"$E4*G4/10","v":0},{"$f":"IF(G4=\"\",0,((E4*101)+G4*10))","v":0}]
[null,"4.2","Expression culturelle","Encourager l'expression culturelle.",null,null,null,null,null," ",0,0]
[null,"4.3","Minorités","Reconnaître l'importance des minorités et de leurs contributions \nà la société.",null,null,null,null,null," ",0,0]
[null,"4.4","Diversité culturelle","Soutenir la diversité des expressions culturelles, y compris \nla diversité linguistique.",null,null,null,null,null," ",0,0]
[null,"4.5","Dialogue culturel","Favoriser les échanges et les communications équitables \nentre les cultures.",null,null,null,null,null," ",0,0]
[null,"4.6","Industrie culturelle","Favoriser l'émergence d'une industrie culturelle génératrice d'emplois et de richesse.",null,null,null,null,null," ",0,0]
[null,"4.7","Innovations culturelles","S'assurer d'un partage équitable des innovations issues d'acquis culturels ou de connaissances traditionnelles.",null,null,null,null,null," ",0,0]
[null,"Pondération moyenne: \ndimension CULTURELLE",null,null,{"$f":"IF(SUM(E4:E10)=0,0,(AVERAGE(E4:E10)))","v":0},"Performance pondérée: \ndimension culturelle",{"$f":"IF($E11=\"\",0,(IF($E11<>0,SUM(K4:K10)/SUM(E4:E10),0)))","v":0}]

{"sheet":"Éthique","index":8,"n_rows":13,"n_cols":12,"rows_kept":13,"cut":false,"hidden":false,"merged":[[12,1,12,3],[1,1,1,9],[2,2,2,3]]}
[]
[null,"DIMENSION ÉTHIQUE\nVise à répondre aux besoins d’équité, de cohérence et d’identification à des valeurs communes."]
[null,"\nThèmes","\nObjectifs",null,"\nPondération","\nJustification de la pondération","\nÉvaluation","Justification de l'évaluation par des actions planifiées ou déjà mises en œuvre","\nPistes de bonification","\nPriorité ","Note 1","priorité"]
[null,"5.1","Responsabilité","Assumer sa responsabilité envers les humains, les autres \nêtres vivants et le non-vivant.",null,null,null,null,null,{"$f":"IF(L4<101,\" \",IF(L4<162,\"Enjeux long terme\",IF(L4<202,\"Non prioritaire\",IF(L4<223,\"Réagir\",IF(L4<263,\"Agir\",IF(L4<303,\"Pérenniser\",IF(L4<344,\"Réagir\",IF(L4<364,\"Agir\",IF(L4<404,\"Pérenniser\")))))))))","v":" "},{"$f":"$E4*G4/10","v":0},{"$f":"IF(G4=\"\",0,((E4*101)+G4*10))","v":0}]
[null,"5.2","Paix","Promouvoir une culture de paix et de non-violence.",null,null,null,null,null," ",0,0]
[null,"5.3","Accessibilité","Améliorer l’accessibilité aux biens, aux services \net aux infrastructures.",null,null,null,null,null," ",0,0]
[null,"5.4","Compensation","Offrir des compensations aux personnes et aux collectivités \nqui subissent les effets négatifs du développement.",null,null,null,null,null," ",0,0]
[null,"5.5","Solidarité","Développer l'esprit communautaire et la solidarité.",null,null,null,null,null," ",0,0]
[null,"5.6","Partage","Mettre en place des mécanismes de redistribution \net de partage des richesses.",null,null,null,null,null," ",0,0]
[null,"5.7","Biens communs","Respecter et protéger les biens communs et les biens publics mondiaux.",null,null,null,null,null," ",0,0]
[null,"5.8","Dialogue"," Développer une éthique du dialogue.",null,null,null,null,null," ",0,0]
[null,"5.9","Valeurs communes","Favoriser l’émergence et le partage de valeurs communes.",null,null,null,null,null," ",0,0]
[null,"Pondération moyenne: \ndimension ÉTHIQUE",null,null,{"$f":"IF(SUM(E4:E12)=0,0,(AVERAGE(E4:E12)))","v":0},"Performance pondérée : \nDimension éthique",{"$f":"IF($E13=\"\",0,(IF($E13<>0,SUM(K4:K12)/SUM(E4:E12),0)))","v":0}]

{"sheet":"Territoire","index":9,"n_rows":16,"n_cols":12,"rows_kept":16,"cut":false,"hidden":false,"merged":[[15,1,15,3],[1,1,1,9],[2,2,2,3]]}
[9]
[null,"DIMENSION TERRITOIRE\nRépondre à des besoins d’infrastructures, d’identité collective et territoriale, et d’adaptation des actions au contexte local "]
[null,"\nThèmes","\nObjectifs",null,"\nPondération","\nJustification de la pondération","\nÉvaluation","Justification de l'évaluation par des actions planifiées ou déjà mises en œuvre","\nPistes de bonification","\nPriorité","Note 1","priorité"]
[null,"6.1","Implication","Promouvoir l'implication et l'accomplissement personnels et collectifs.",null,null,null,null,null,{"$f":"IF(L4<101,\" \",IF(L4<162,\"Enjeux long terme\",IF(L4<202,\"Non prioritaire\",IF(L4<223,\"Réagir\",IF(L4<263,\"Agir\",IF(L4<303,\"Pérenniser\",IF(L4<344,\"Réagir\",IF(L4<364,\"Agir\",IF(L4<404,\"Pérenniser\")))))))))","v":" "},{"$f":"$E4*G4/10","v":0},{"$f":"IF(G4=\"\",0,((E4*101)+G4*10))","v":0}]
[null,"6.2","Cohésion","Favoriser la connectivité et la cohésion sociale.",null,null,null,null,null," ",0,0]
[null,"6.3","Autonomie et résilience","Améliorer l'autonomie et la résilience des collectivités.",null,null,null,null,null," ",0,0]
[null,"6.4","Établissements humains","Aménager des villes,  des établissements humains et des infrastructures durables.",null,null,null,null,null,{"$f":"IF(L7<101,\" \",IF(L7<162,\"Enjeux long terme\",IF(L7<202,\"Non prioritaire\",IF(L7<223,\"Réagir\",IF(L7<263,\"Agir\",IF(L7<303,\"Pérenniser\",IF(L7<344,\"Réagir\",IF(L7<364,\"Agir\",IF(L7<404,\"Pérenniser\")))))))))","v":" "},0,0]
[null,"6.5","Mobilité","Favoriser la mobilité durable.",null,null,null,null,null," ",0,0]
[null,"6.6","Accès au logement","Assurer l'accès au logement.",null,null,null,null,null," ",0,0]
[null,"6.7","Usage du territoire","Optimiser l’utilisation du territoire.",null,null,null,null,null," ",0,0]
[null,"6.8","Enjeux locaux","Considérer les enjeux locaux spécifiques dans les processus de planification et de décision.",null,null,null,null,null,{"$f":"IF(L11<101,\" \",IF(L11<162,\"Enjeux long terme\",IF(L11<202,\"Non prioritaire\",IF(L11<223,\"Réagir\",IF(L11<263,\"Agir\",IF(L11<303,\"Pérenniser\",IF(L11<344,\"Réagir\",IF(L11<364,\"Agir\",IF(L11<404,\"Pérenniser\")))))))))","v":" "},{"$f":"$E11*G11/10","v":0},{"$f":"IF(G11=\"\",0,((E11*101)+G11*10))","v":0}]
[null,"6.9","Paysage","Maintenir la diversité des paysages.",null,null,null,null,null," ",0,0]
[null,"6.10","Agriculture","Mettre en œuvre des pratiques agricoles adaptées et durables.",null,null,null,null,null," ",0,0]
[null,"6.11","Tourisme","Instaurer des pratiques de tourisme durable.",null,null,null,null,null,{"$f":"IF(L14<101,\" \",IF(L14<162,\"Enjeux long terme\",IF(L14<202,\"Non prioritaire\",IF(L14<223,\"Réagir\",IF(L14<263,\"Agir\",IF(L14<303,\"Pérenniser\",IF(L14<344,\"Réagir\",IF(L14<364,\"Agir\",IF(L14<404,\"Pérenniser\")))))))))","v":" "},{"$f":"$E14*G14/10","v":0},{"$f":"IF(G14=\"\",0,((E14*101)+G14*10))","v":0}]
[null,"6.12","Adaptation","Prévoir des mesures d’adaptation aux changements.",null,null,null,null,null,{"$f":"IF(L15<101,\" \",IF(L15<162,\"Enjeux long terme\",IF(L15<202,\"Non prioritaire\",IF(L15<223,\"Réagir\",IF(L15<263,\"Agir\",IF(L15<303,\"Pérenniser\",IF(L15<344,\"Réagir\",IF(L15<364,\"Agir\",IF(L15<404,\"Pérenniser\")))))))))","v":" "},{"$f":"$E15*G15/10","v":0},{"$f":"IF(G15=\"\",0,((E15*101)+G15*10))","v":0}]
[null,"Pondération moyenne: \ndimension TERRITOIRE",null,null,{"$f":"IF(SUM(E4:E15)=0,0,(AVERAGE(E4:E15)))","v":0},"Performance pondérée: \ndimension territoire",{"$f":"IF($E16=\"\",0,(IF($E16<>0,SUM(K4:K15)/SUM(E4:E15),0)))","v":0}]

{"sheet":"Gouvernance","index":10,"n_rows":16,"n_cols":12,"rows_kept":16,"cut":false,"hidden":false,"merged":[[15,1,15,3],[1,1,1,9],[2,2,2,3]]}
[]
[null,"DIMENSION GOUVERNANCE\nVise à répondre à des besoins de participation, de démocratie et de transparence, ainsi que d’efficacité des institutions."]
[null,"\nThèmes","\nObjectifs",null,"\nPondération","\nJustification de la pondération","\nÉvaluation","Justification de l'évaluation par des actions planifiées ou déjà mises en œuvre","\nPistes de bonification","\nPriorité ","Note 1","priorité"]
[null,"7.1","Institutions","Améliorer l'efficacité, la responsabilité et l'inclusivité des institutions.",null,null,null,null,null,{"$f":"IF(L4<101,\" \",IF(L4<162,\"Enjeux long terme\",IF(L4<202,\"Non prioritaire\",IF(L4<223,\"Réagir\",IF(L4<263,\"Agir\",IF(L4<303,\"Pérenniser\",IF(L4<344,\"Réagir\",IF(L4<364,\"Agir\",IF(L4<404,\"Pérenniser\")))))))))","v":" "},{"$f":"$E4*G4/10","v":0},{"$f":"IF(G4=\"\",0,((E4*101)+G4*10))","v":0}]
[null,"7.2","Gestion","Intégrer le développement durable et ses outils d’opérationnalisation dans les processus de gestion et de décision.",null,null,null,null,null," ",0,0]
[null,"7.3","Participation","Favoriser la participation inclusive des parties prenantes.",null,null,null,null,null," ",0,0]
[null,"7.4","Partenariats","Développer des partenariats.",null,null,null,null,null," ",0,0]
[null,"7.5","Acceptabilité","Considérer le niveau d’acceptabilité sociale des propositions de développement.",null,null,null,null,null," ",0,0]
[null,"7.6","Subsidiarité","Rapprocher la prise de décision des acteurs concernés.",null,null,null,null,null," ",0,0]
[null,"7.7","Cohérence","Assurer la cohérence systémique des propositions de développement.",null,null,null,null,null," ",0,0]
[null,"7.8","Information","Assurer l'accès à une information préalable, pertinente, compréhensible et juste.",null,null,null,null,null," ",0,0]
[null,"7.9","Suivi","Mettre en place des mesures de suivi et d’évaluation.",null,null,null,null,null," ",0,0]
[null,"7.10","Transparence","Agir et rendre des comptes de manière transparente et intègre.",null,null,null,null,null," ",0,0]
[null,"7.11","Recherche et innovation","Optimiser le potentiel d'innovation et la diversification des options.",null,null,null,null,null," ",0,0]
[null,"7.12","Gestion des risques","Reconnaître, prévenir et atténuer les risques.",null,null,null,null,null," ",0,0]
[null,"Pondération moyenne: \ndimension GOUVERNEMENT",null,null,{"$f":"IF(SUM(E4:E15)=0,0,(AVERAGE(E4:E15)))","v":0},"Performance pondérée : \ndimension gouvernance",{"$f":"IF($E16=\"\",0,(IF($E16<>0,SUM(K4:K15)/SUM(E4:E15),0)))","v":0}]

{"sheet":"Résultats","index":11,"n_rows":105,"n_cols":6,"rows_kept":105,"cut":false,"hidden":false,"merged":[[76,1,76,4],[91,1,91,4],[1,2,1,4],[2,2,2,4],[11,1,11,3],[13,1,13,4],[28,1,28,4],[41,1,41,4],[54,1,54,4],[64,1,64,4]]}
[]
[null,"Projet: ",{"$f":"IF('Description du PSPP'!$C$4=0,\"\",'Description du PSPP'!$C$4)","v":""}]
[null,"Date: ",{"$f":"IF('Description du PSPP'!$C$11=0,\"\",'Description du PSPP'!$C$11)","v":""}]
[null,"DIMENSIONS","Pondération moyenne","Performance moyenne","État de\nla situation"]
[null,"SOCIALE",{"$f":"Sociale!E16","v":0},{"$f":"Sociale!G16","v":0},{"$f":"IF(D5=0,\" \",IF(D5<0.2,\"Critique\",IF(D5<0.4,\"Problématique\",IF(D5<0.6,\"Perfectible\",IF(D5<0.8,\"Satisfaisante\",IF(D5<1.01,\"Excellente\"))))))","v":" "}]
[null,"ÉCOLOGIQUE",{"$f":"Écologique!E14","v":0},{"$f":"Écologique!G14","v":0},{"$f":"IF(D6=0,\" \",IF(D6<0.2,\"Critique\",IF(D6<0.4,\"Problématique\",IF(D6<0.6,\"Perfectible\",IF(D6<0.8,\"Satisfaisante\",IF(D6<1.01,\"Excellente\"))))))","v":" "}]
[null,"ÉCONOMIQUE",{"$f":"Économique!E14","v":0},{"$f":"Économique!G14","v":0}," "]
[null,"CULTURELLE",{"$f":"Culturelle!E11","v":0},{"$f":"Culturelle!G11","v":0}," "]
[null,"ÉTHIQUE",{"$f":"Éthique!E13","v":0},{"$f":"Éthique!G13","v":0}," "]
[null,"TERRITOIRE",{"$f":"Territoire!E16","v":0},{"$f":"Territoire!G16","v":0}," "]
[null,"GOUVERNANCE",{"$f":"Gouvernance!E16","v":0},{"$f":"Gouvernance!G16","v":0}," "]
[null,"Performance générale en termes \nde développement durable",null,null,{"$f":"IF(AVERAGE(D5:D11)=0,\" \",IF(AVERAGE(D5:D11)<0.25,\"Critique : PSPP à requestionner\",IF(AVERAGE(D5:D11)<0.45,\"Problématique : PSPP à modifier en profondeur\",IF(AVERAGE(D5:D11)<0.65,\"Perfectible : PSPP à améliorer\",IF(AVERAGE(D5:D11)<0.85,\"Satisfaisante : PSPP à optimiser\",IF(AVERAGE(D5:D11)<1.01,\"Excellente : PSPP à mettre en valeur\"))))))","v":" "}]
[]
[null,"DIMENSION SOCIALE"]
[null,"THÈMES","Pondération","Performance","Priorité"]
[null,{"$f":"Sociale!C4","v":"Lutte contre \nla pauvreté"},{"$f":"Sociale!E4","v":0},{"$f":"Sociale!G4","v":0},{"$f":"Sociale!J4","v":" "},3]
[null,{"$f":"Sociale!C5","v":"Accès à l'eau potable"},{"$f":"Sociale!E5","v":0},{"$f":"Sociale!G5","v":0},{"$f":"Sociale!J5","v":" "},3]
[null,{"$f":"Sociale!C6","v":"Usages de l'eau"},{"$f":"Sociale!E6","v":0},{"$f":"Sociale!G6","v":0},{"$f":"Sociale!J6","v":" "},3]
[null,{"$f":"Sociale!C7","v":"Alimentation"},{"$f":"Sociale!E7","v":0},{"$f":"Sociale!G7","v":0},{"$f":"Sociale!J7","v":" "},3]
[null,{"$f":"Sociale!C8","v":"Accès à l'énergie"},{"$f":"Sociale!E8","v":0},{"$f":"Sociale!G8","v":0},{"$f":"Sociale!J8","v":" "},3]
[null,{"$f":"Sociale!C9","v":"Santé globale"},{"$f":"Sociale!E9","v":0},{"$f":"Sociale!G9","v":0},{"$f":"Sociale!J9","v":" "},3]
[null,{"$f":"Sociale!C10","v":"Accès aux services \nde santé"},{"$f":"Sociale!E10","v":0},{"$f":"Sociale!G10","v":0},{"$f":"Sociale!J10","v":" "},3]
[null,{"$f":"Sociale!C11","v":"Santé maternelle \net infantile"},{"$f":"Sociale!E11","v":0},{"$f":"Sociale!G11","v":0},{"$f":"Sociale!J11","v":" "},3]
[null,{"$f":"Sociale!C12","v":"Sécurité"},{"$f":"Sociale!E12","v":0},{"$f":"Sociale!G12","v":0},{"$f":"Sociale!J12","v":" "},3]
[null,{"$f":"Sociale!C13","v":"Éducation de base"},{"$f":"Sociale!E13","v":0},{"$f":"Sociale!G13","v":0},{"$f":"Sociale!J13","v":" "},3]
[null,{"$f":"Sociale!C14","v":"Éducation supérieure"},{"$f":"Sociale!E14","v":0},{"$f":"Sociale!G14","v":0},{"$f":"Sociale!J14","v":" "},3]
[null,{"$f":"Sociale!C15","v":"Genre"},{"$f":"Sociale!E15","v":0},{"$f":"Sociale!G15","v":0},{"$f":"Sociale!J15","v":" "},3]
[]
[null,"DIMENSION ÉCOLOGIQUE"]
[null,"THÈMES","Pondération","Performance","Priorité"]
[null,{"$f":"Écologique!C4","v":"Connaissance \ndes écosystèmes"},{"$f":"Écologique!E4","v":0},{"$f":"Écologique!G4","v":0},{"$f":"Écologique!J4","v":" "},3]
[null,{"$f":"Écologique!C5","v":"Biodiversité"},{"$f":"Écologique!E5","v":0},{"$f":"Écologique!G5","v":0},{"$f":"Écologique!J5","v":" "},3]
[null,{"$f":"Écologique!C6","v":"Écosystèmes continentaux"},{"$f":"Écologique!E6","v":0},{"$f":"Écologique!G6","v":0},{"$f":"Écologique!J6","v":" "},3]
[null,{"$f":"Écologique!C7","v":"Écosystèmes marins"},{"$f":"Écologique!E7","v":0},{"$f":"Écologique!G7","v":0},{"$f":"Écologique!J7","v":" "},3]
[null,{"$f":"Écologique!C8","v":"Sols"},{"$f":"Écologique!E8","v":0},{"$f":"Écologique!G8","v":0},{"$f":"Écologique!J8","v":" "},3]
[null,{"$f":"Écologique!C9","v":"Restauration"},{"$f":"Écologique!E9","v":0},{"$f":"Écologique!G9","v":0},{"$f":"Écologique!J9","v":" "},3]
[null,{"$f":"Écologique!C10","v":"Ressources"},{"$f":"Écologique!E10","v":0},{"$f":"Écologique!G10","v":0},{"$f":"Écologique!J10","v":" "},3]
[null,{"$f":"Écologique!C11","v":"Extrants"},{"$f":"Écologique!E11","v":0},{"$f":"Écologique!G11","v":0},{"$f":"Écologique!J11","v":" "},3]
[null,{"$f":"Écologique!C12","v":"Polluants globaux"},{"$f":"Écologique!E12","v":0},{"$f":"Écologique!G12","v":0},{"$f":"Écologique!J12","v":" "},3]
[null,{"$f":"Écologique!C13","v":"Changements climatiques"},{"$f":"Écologique!E13","v":0},{"$f":"Écologique!G13","v":0},{"$f":"Écologique!J13","v":" "},3]
[]
[null,"DIMENSION ÉCONOMIQUE"]
[null,"THÈMES","Pondération","Performance","Priorité"]
[null,{"$f":"Économique!C4","v":"Production responsable"},{"$f":"Économique!E4","v":0},{"$f":"Économique!G4","v":0},{"$f":"Économique!K4","v":" "},3]
[null,{"$f":"Économique!C5","v":"Industrialisation durable"},{"$f":"Économique!E5","v":0},{"$f":"Économique!G5","v":0},{"$f":"Économique!K5","v":" "},3]
[null,{"$f":"Économique!C6","v":"Consommation responsable"},{"$f":"Économique!E6","v":0},{"$f":"Économique!G6","v":0},{"$f":"Économique!K6","v":" "},3]
[null,{"$f":"Économique!C7","v":"Viabilité économique"},{"$f":"Économique!E7","v":0},{"$f":"Économique!G7","v":0},{"$f":"Économique!K7","v":" "},3]
[null,{"$f":"Économique!C8","v":"Accès à l'emploi"},{"$f":"Économique!E8","v":0},{"$f":"Économique!G8","v":0},{"$f":"Économique!K8","v":" "},3]
[null,{"$f":"Économique!C9","v":"Conditions de travail"},{"$f":"Économique!E9","v":0},{"$f":"Économique!G9","v":0},{"$f":"Économique!K9","v":" "},3]
[null,{"$f":"Économique!C10","v":"Richesses \net prospérité"},{"$f":"Économique!E10","v":0},{"$f":"Économique!G10","v":0},{"$f":"Économique!K10","v":" "},3]
[null,{"$f":"Économique!C11","v":"Production \nde richesse"},{"$f":"Économique!E11","v":0},{"$f":"Économique!G11","v":0},{"$f":"Économique!K11","v":" "},3]
[null,{"$f":"Économique!C12","v":"Entrepreneuriat"},{"$f":"Économique!E12","v":0},{"$f":"Économique!G12","v":0},{"$f":"Économique!K12","v":" "},3]
[null,{"$f":"Économique!C13","v":"Modèles économiques"},{"$f":"Économique!E13","v":0},{"$f":"Économique!G13","v":0},{"$f":"Économique!K13","v":" "},3]
[]
[null,"DIMENSION CULTURELLE"]
[null,"THÈMES","Pondération","Performance","Priorité"]
[null,{"$f":"Culturelle!C4","v":"Patrimoine culturel"},{"$f":"Culturelle!E4","v":0},{"$f":"Culturelle!G4","v":0},{"$f":"Culturelle!J4","v":" "},3]
[null,{"$f":"Culturelle!C5","v":"Expression culturelle"},{"$f":"Culturelle!E5","v":0},{"$f":"Culturelle!G5","v":0},{"$f":"Culturelle!J5","v":" "},3]
[null,{"$f":"Culturelle!C6","v":"Minorités"},{"$f":"Culturelle!E6","v":0},{"$f":"Culturelle!G6","v":0},{"$f":"Culturelle!J6","v":" "},3]
[null,{"$f":"Culturelle!C7","v":"Diversité culturelle"},{"$f":"Culturelle!E7","v":0},{"$f":"Culturelle!G7","v":0},{"$f":"Culturelle!J7","v":" "},3]
[null,{"$f":"Culturelle!C8","v":"Dialogue culturel"},{"$f":"Culturelle!E8","v":0},{"$f":"Culturelle!G8","v":0},{"$f":"Culturelle!J8","v":" "},3]
[null,{"$f":"Culturelle!C9","v":"Industrie culturelle"},{"$f":"Culturelle!E9","v":0},{"$f":"Culturelle!G9","v":0},{"$f":"Culturelle!J9","v":" "},3]
[null,{"$f":"Culturelle!C10","v":"Innovations culturelles"},{"$f":"Culturelle!E10","v":0},{"$f":"Culturelle!G10","v":0},{"$f":"Culturelle!J10","v":" "},3]
[]
[null,"DIMENSION ÉTHIQUE"]
[null,"THÈMES","Pondération","Performance","Priorité"]
[null,{"$f":"Éthique!C4","v":"Responsabilité"},{"$f":"Éthique!E4","v":0},{"$f":"Éthique!G4","v":0},{"$f":"Éthique!J4","v":" "},3]
[null,{"$f":"Éthique!C5","v":"Paix"},{"$f":"Éthique!E5","v":0},{"$f":"Éthique!G5","v":0},{"$f":"Éthique!J5","v":" "},3]
[null,{"$f":"Éthique!C6","v":"Accessibilité"},{"$f":"Éthique!E6","v":0},{"$f":"Éthique!G6","v":0},{"$f":"Éthique!J6","v":" "},3]
[null,{"$f":"Éthique!C7","v":"Compensation"},{"$f":"Éthique!E7","v":0},{"$f":"Éthique!G7","v":0},{"$f":"Éthique!J7","v":" "},3]
[null,{"$f":"Éthique!C8","v":"Solidarité"},{"$f":"Éthique!E8","v":0},{"$f":"Éthique!G8","v":0},{"$f":"Éthique!J8","v":" "},3]
[null,{"$f":"Éthique!C9","v":"Partage"},{"$f":"Éthique!E9","v":0},{"$f":"Éthique!G9","v":0},{"$f":"Éthique!J9","v":" "},3]
[null,{"$f":"Éthique!C10","v":"Biens communs"},{"$f":"Éthique!E10","v":0},{"$f":"Éthique!G10","v":0},{"$f":"Éthique!J10","v":" "},3]
[null,{"$f":"Éthique!C11","v":"Dialogue"},{"$f":"Éthique!E11","v":0},{"$f":"Éthique!G11","v":0},{"$f":"Éthique!J11","v":" "},3]
[null,{"$f":"Éthique!C12","v":"Valeurs communes"},{"$f":"Éthique!E12","v":0},{"$f":"Éthique!G12","v":0},{"$f":"Éthique!J12","v":" "},3]
[]
[null,"DIMENSION TERRITOIRE"]
[null,"THÈMES","Pondération","Performance","Priorité"]
[null,{"$f":"Territoire!C4","v":"Implication"},{"$f":"Territoire!E4","v":0},{"$f":"Territoire!G4","v":0},{"$f":"Territoire!J4","v":" "},3]
[null,{"$f":"Territoire!C5","v":"Cohésion"},{"$f":"Territoire!E5","v":0},{"$f":"Territoire!G5","v":0},{"$f":"Territoire!J5","v":" "},3]
[null,{"$f":"Territoire!C6","v":"Autonomie et résilience"},{"$f":"Territoire!E6","v":0},{"$f":"Territoire!G6","v":0},{"$f":"Territoire!J6","v":" "},3]
[null,{"$f":"Territoire!C7","v":"Établissements humains"},{"$f":"Territoire!E7","v":0},{"$f":"Territoire!G7","v":0},{"$f":"Territoire!J7","v":" "},3]
[null,{"$f":"Territoire!C8","v":"Mobilité"},{"$f":"Territoire!E8","v":0},{"$f":"Territoire!G8","v":0},{"$f":"Territoire!J8","v":" "},3]
[null,{"$f":"Territoire!C9","v":"Accès au logement"},{"$f":"Territoire!E9","v":0},{"$f":"Territoire!G9","v":0},{"$f":"Territoire!J9","v":" "},3]
[null,{"$f":"Territoire!C10","v":"Usage du territoire"},{"$f":"Territoire!E10","v":0},{"$f":"Territoire!G10","v":0},{"$f":"Territoire!J10","v":" "},3]
[null,{"$f":"Territoire!C11","v":"Enjeux locaux"},{"$f":"Territoire!E11","v":0},{"$f":"Territoire!G11","v":0},{"$f":"Territoire!J11","v":" "},3]
[null,{"$f":"Territoire!C12","v":"Paysage"},{"$f":"Territoire!E12","v":0},{"$f":"Territoire!G12","v":0},{"$f":"Territoire!J12","v":" "},3]
[null,{"$f":"Territoire!C13","v":"Agriculture"},{"$f":"Territoire!E13","v":0},{"$f":"Territoire!G13","v":0},{"$f":"Territoire!J13","v":" "},3]
[null,{"$f":"Territoire!C14","v":"Tourisme"},{"$f":"Territoire!E14","v":0},{"$f":"Territoire!G14","v":0},{"$f":"Territoire!J14","v":" "},3]
[null,{"$f":"Territoire!C15","v":"Adaptation"},{"$f":"Territoire!E15","v":0},{"$f":"Territoire!G15","v":0},{"$f":"Territoire!J15","v":" "},3]
[]
[null,"DIMENSION GOUVERNANCE"]
[null,"THÈMES","Pondération","Performance","Priorité"]
[null,{"$f":"Gouvernance!C4","v":"Institutions"},{"$f":"Gouvernance!E4","v":0},{"$f":"Gouvernance!G4","v":0},{"$f":"Gouvernance!J4","v":" "},3]
[null,{"$f":"Gouvernance!C5","v":"Gestion"},{"$f":"Gouvernance!E5","v":0},{"$f":"Gouvernance!G5","v":0},{"$f":"Gouvernance!J5","v":" "},3]
[null,{"$f":"Gouvernance!C6","v":"Participation"},{"$f":"Gouvernance!E6","v":0},{"$f":"Gouvernance!G6","v":0},{"$f":"Gouvernance!J6","v":" "},3]
[null,{"$f":"Gouvernance!C7","v":"Partenariats"},{"$f":"Gouvernance!E7","v":0},{"$f":"Gouvernance!G7","v":0},{"$f":"Gouvernance!J7","v":" "},3]
[null,{"$f":"Gouvernance!C8","v":"Acceptabilité"},{"$f":"Gouvernance!E8","v":0},{"$f":"Gouvernance!G8","v":0},{"$f":"Gouvernance!J8","v":" "},3]
[null,{"$f":"Gouvernance!C9","v":"Subsidiarité"},{"$f":"Gouvernance!E9","v":0},{"$f":"Gouvernance!G9","v":0},{"$f":"Gouvernance!J9","v":" "},3]
[null,{"$f":"Gouvernance!C10","v":"Cohérence"},{"$f":"Gouvernance!E10","v":0},{"$f":"Gouvernance!G10","v":0},{"$f":"Gouvernance!J10","v":" "},3]
[null,{"$f":"Gouvernance!C11","v":"Information"},{"$f":"Gouvernance!E11","v":0},{"$f":"Gouvernance!G11","v":0},{"$f":"Gouvernance!J11","v":" "},3]
[null,{"$f":"Gouvernance!C12","v":"Suivi"},{"$f":"Gouvernance!E12","v":0},{"$f":"Gouvernance!G12","v":0},{"$f":"Gouvernance!J12","v":" "},3]
[null,{"$f":"Gouvernance!C13","v":"Transparence"},{"$f":"Gouvernance!E13","v":0},{"$f":"Gouvernance!G13","v":0},{"$f":"Gouvernance!J13","v":" "},3]
[null,{"$f":"Gouvernance!C14","v":"Recherche et innovation"},{"$f":"Gouvernance!E14","v":0},{"$f":"Gouvernance!G14","v":0},{"$f":"Gouvernance!J14","v":" "},3]
[null,{"$f":"Gouvernance!C15","v":"Gestion des risques"},{"$f":"Gouvernance!E15","v":0},{"$f":"Gouvernance!G15","v":0},{"$f":"Gouvernance!J15","v":" "},3]

{"sheet":"Modalités d'interprétation","index":12,"n_rows":113,"n_cols":15,"rows_kept":113,"cut":false,"hidden":false,"merged":[]}
[]
[]
[]
[]
[]
[]
[]
[]
[]
[]
[]
[]
[]
[]
[]
[]
[]
[]
[]
[]
[]
[]
[]
[]
[]
[]
[]
[]
[]
[]
[]
[]
[]
[]
[]
[]
[]
[]
[]
[]
[]
[]
[]
[]
[]
[]
[]
[]
[]
[]
[]
[]
[]
[]
[]
[]
[]
[]
[]
[]
[]
[]
[]
[]
[null,null,null,null,null,null,null,null,null,null,null,null,null,null," "]
[]
[]
[]
[]
[]
[]
[]
[]
[]
[]
[]
[]
[]
[]
[]
[]
[]
[]
[]
[]
[]
[]
[]
[]
[]
[]
[]
[]
[]
[]
[]
[]
[]
[]
[]
[]
[]
[]
[]
[]
[]
[]
[]
[]
[]
[]
[]
[null,null,null,null,null,null,null,null,null,null,"  "]

{"sheet":"Analyse des bonifications","index":13,"n_rows":3,"n_cols":7,"rows_kept":3,"cut":false,"hidden":false,"merged":[]}
[]
[null,"Pistes de bonification proposées","Objectifs positivement affectés par les pistes de bonification","Objectifs négativement affectés par les pistes de bonification","Faisabilité de la piste de bonification","Action à prendre","Modalités de mise en œuvre "]
[null,"Reprenez dans cette colonne les pistes de bonification les plus pertinentes proposées lors de l'analyse (pour les priorités Agir et Réagir, ou encore les pistes qui reviennent pour plusieurs objectifs).","Listez dans cette colonne tous les objectifs de la GADD sur lesquels chaque piste de bonification est susceptible d'avoir un effet positif.","Listez dans cette colonne tous les objectifs de la GADD sur lesquels chaque piste de bonification est susceptible d'avoir un effet négatif.","Évaluez le niveau de faisabilité et d'opportunité de chaque piste de bonification (nul, faible, moyen, élevé) en fonction de critères techniques, financiers, logistiques, temporels, etc.","En fonction des réponses données, établissez pour chaque piste de bonification les actions à prendre pour la suite du PSPP (abandonner l'idée, améliorer la proposition, effectuer une étude de faisabilité plus détaillée, mettre en action immédiatement, etc.). ","Le cas échéant, précisez les modalités de mise en œuvre de la piste de bonification (budget, échéances, responsabilités, etc.)"]